[Event "35th European Club Cup 2019"]
[Site "Ulcinj"]
[Date "2019.11.13"]
[Round "4.26"]
[White "Basso, Pier Luigi"]
[Black "Alekseev, Evgeny"]
[Result "1-0"]
[ECO "D38"]
[WhiteElo "2563"]
[BlackElo "2623"]
[Annotator "ChessBase"]
[PlyCount "129"]
[EventDate "2019.11.10"]
[EventType "team-tourn"]
[EventCountry "MNE"]
[SourceTitle "playchess.com"]
[Source "ChessBase"]
[SourceQuality "1"]
[WhiteTeam "WorldTradingLab Club"]
[BlackTeam "Law & Order"]
[TimeControl "40/5400+30:1800+30"]

1. d4 {[%emt 0:00:00]} Nf6 {[%emt 0:00:00]} 2. c4 {[%emt 0:00:00]} e6 {[%emt 0:00:00]} 3. Nf3 {[%emt 0:00:00]} d5 {[%emt 0:00:00]} 4. Nc3 {[%emt 0:00:00]} Bb4 {[%emt 0:00:15]} 5. cxd5 {[%emt 0:00:00]} exd5 {[%emt 0:00:21]} 6. Bg5 {[%emt 0:00:01]} h6 {[%emt 0:04:41]} 7. Bh4 {[%emt 0:01:14]} O-O {[%emt 0:00:20]} 8. e3 {[%emt 0:00:06]} Bf5 {[%emt 0:00:25]} 9. Be2 {[%emt 0:00:35]} Nbd7 {[%emt 0:01:36]} 10. Qb3 {[%emt 0:00:08]} Bxc3+ {[%emt 0:00:51]} 11. Qxc3 {[%emt 0:00:09]} c6 {[%emt 0:01:49]} 12. Nd2 {[%emt 0:00:40]} Ne4 {[%emt 0:06:09]} 13. Bxd8 {[%emt 0:01:10]} Nxc3 {[%emt 0:00:17]} 14. bxc3 {[%emt 0:00:14]} Rfxd8 {[%emt 0:03:54]} 15. a4 {[%emt 0:00:14]} Rac8 {[%emt 0:08:55]} 16. Nf1 {[%emt 0:02:18]} c5 {[%emt 0:05:59]} 17. Ng3 {[%emt 0:00:18]} Bh7 {[%emt 0:07:11]} 18. Kd2 {[%emt 0:01:41]} Nf6 {[%emt 0:11:07]} 19. f3 {[%emt 0:04:40]} Ne8 {[%emt 0:07:50]} 20. a5 {[%emt 0:05:23]} Rc7 {[%emt 0:06:26]} 21. Ra3 {[%emt 0:02:35]} Nd6 {[%emt 0:05:23]} 22. Rha1 {[%emt 0:12:38]} Bg6 {[%emt 0:05:17]} 23. h4 {[%emt 0:12:52]} Re8 {[%emt 0:03:59]} 24. h5 {[%emt 0:01:40]} Bh7 {[%emt 0:00:26]} 25. Ra4 {[%emt 0:06:43]} Kf8 {[%emt 0:02:08]} 26. Bf1 {[%emt 0:01:19]} Re6 {[%emt 0:02:55]} 27. dxc5 {[%emt 0:04:31]} Rxc5 {[%emt 0:00:20]} 28. Rb4 {[%emt 0:00:02]} Re7 {[%emt 0:05:09]} 29. Rd4 {[%emt 0:05:13]} Rec7 {[%emt 0:01:38]} 30. e4 {[%emt 0:01:34]} Rxc3 {[%emt 0:00:53]} 31. Rxd5 {[%emt 0:01:02]} Ke7 {[%emt 0:00:54]} 32. Bd3 {[%emt 0:04:03]} Rb3 {[%emt 0:03:21]} 33. Ra2 {[%emt 0:03:00]} f6 {[%emt 0:04:15]} 34. Rc2 {[%emt 0:03:42]} Rc6 {[%emt 0:01:32]} 35. Rxc6 {[%emt 0:06:09]} bxc6 {[%emt 0:00:01]} 36. Rc5 {[%emt 0:00:06]} Kd7 {[%emt 0:00:33]} 37. Ne2 {[%emt 0:01:00]} Nb5 {[%emt 0:01:07]} 38. Bxb5 {[%emt 0:04:54]} Rxb5 {[%emt 0:00:24]} 39. Rxb5 {[%emt 0:01:06]} cxb5 {[%emt 0:00:01]} 40. Kc3 {[%emt 0:00:00]} Kd6 {[%emt 0:00:00]} 41. Nd4 {[%emt 0:04:26]} a6 {[%emt 0:06:16]} 42. Kb4 {[%emt 0:00:27]} g6 {[%emt 0:01:47]} 43. hxg6 {[%emt 0:03:18]} Bxg6 {[%emt 0:01:06]} 44. Nb3 {[%emt 0:00:10]} f5 {[%emt 0:02:41]} 45. e5+ {[%emt 0:11:00]} Kxe5 {[%emt 0:00:09]} 46. Nc5 {[%emt 0:00:04]} h5 {[%emt 0:03:55]} 47. Nxa6 {[%emt 0:00:48]} h4 {[%emt 0:00:04]} 48. Nc5 {[%emt 0:05:20]} Be8 {[%emt 0:04:43]} 49. a6 Bc6 50. Nd3+ {[%emt 0:04:22]} Kd4 {[%emt 0:04:14]} 51. Nf4 {[%emt 0:00:14]} Ke3 {[%emt 0:00:23]} 52. Ng6 {[%emt 0:06:19]} h3 {[%emt 0:01:16]} 53. gxh3 {[%emt 0:00:04]} Bxf3 {[%emt 0:00:43]} 54. h4 {[%emt 0:00:06]} f4 {[%emt 0:04:01]} 55. a7 {[%emt 0:00:26]} Ba8 {[%emt 0:01:35]} 56. h5 {[%emt 0:00:53]} f3 {[%emt 0:00:36]} 57. Ne5 {[%emt 0:00:06]} f2 {[%emt 0:00:39]} 58. Ng4+ {[%emt 0:00:04]} Kf4 {[%emt 0:00:05]} 59. Nxf2 {[%emt 0:00:04]} Kg5 {[%emt 0:00:03]} 60. Kxb5 {[%emt 0:00:20]} Kxh5 {[%emt 0:00:02]} 61. Kb6 {[%emt 0:00:12]} Kg6 {[%emt 0:00:16]} 62. Kc7 {[%emt 0:00:27]} Kf6 {[%emt 0:00:35]} 63. Kb8 {[%emt 0:01:37]} Bg2 {[%emt 0:00:05]} 64. Nd3 {[%emt 0:00:04]} Ke7 {[%emt 0:00:05]} 65. Nc5 {[%emt 0:00:06]} 1-0

[Event "35th European Club Cup 2019"]
[Site "Ulcinj"]
[Date "2019.11.13"]
[Round "4.27"]
[White "Rakhmanov, Aleksandr"]
[Black "Lopez Martinez, Josep Manuel"]
[Result "1-0"]
[ECO "A04"]
[WhiteElo "2638"]
[BlackElo "2567"]
[Annotator "ChessBase"]
[PlyCount "89"]
[EventDate "2019.11.10"]
[EventType "team-tourn"]
[EventCountry "MNE"]
[SourceTitle "playchess.com"]
[Source "ChessBase"]
[SourceQuality "1"]
[WhiteTeam "Law & Order"]
[BlackTeam "WorldTradingLab Club"]
[TimeControl "40/5400+30:1800+30"]

1. Nf3 {[%emt 0:00:00]} e6 {[%emt 0:01:00]} 2. g3 {[%emt 0:00:43]} d5 {[%emt 0:03:29]} 3. Bg2 {[%emt 0:00:49]} Nf6 {[%emt 0:00:24]} 4. b3 {[%emt 0:02:26]} Be7 {[%emt 0:01:48]} 5. Bb2 {[%emt 0:01:08]} O-O {[%emt 0:02:24]} 6. c4 {[%emt 0:00:37]} b6 {[%emt 0:02:35]} 7. O-O {[%emt 0:03:18]} Bb7 {[%emt 0:00:42]} 8. e3 {[%emt 0:01:24]} c5 {[%emt 0:02:18]} 9. Nc3 {[%emt 0:03:15]} dxc4 {[%emt 0:03:42]} 10. bxc4 {[%emt 0:00:23]} Nc6 {[%emt 0:00:39]} 11. Qe2 {[%emt 0:00:22]} Rc8 {[%emt 0:07:39]} 12. Rad1 {[%emt 0:01:55]} Qc7 {[%emt 0:01:50]} 13. Ne1 {[%emt 0:04:33]} Rfd8 {[%emt 0:04:19]} 14. f4 {[%emt 0:00:57]} Nb4 {[%emt 0:00:52]} 15. Bxb7 {[%emt 0:07:44]} Qxb7 {[%emt 0:00:23]} 16. a3 {[%emt 0:02:42]} Nc6 {[%emt 0:00:27]} 17. g4 {[%emt 0:05:16]} a6 {[%emt 0:05:54]} 18. Ng2 {[%emt 0:06:05]} b5 {[%emt 0:03:56]} 19. g5 {[%emt 0:03:36]} Ne8 {[%emt 0:02:10]} 20. cxb5 {[%emt 0:00:27]} axb5 {[%emt 0:00:28]} 21. Nxb5 {[%emt 0:05:29]} c4 {[%emt 0:08:51]} 22. a4 {[%emt 0:01:02]} Nb4 {[%emt 0:00:57]} 23. h4 {[%emt 0:04:38]} Qa8 {[%emt 0:03:03]} 24. f5 {[%emt 0:01:46]} exf5 {[%emt 0:01:11]} 25. Rxf5 {[%emt 0:01:55]} Nd6 {[%emt 0:08:33]} 26. Nxd6 {[%emt 0:02:41]} Rxd6 {[%emt 0:00:15]} 27. Qf1 {[%emt 0:20:03]} Nd5 {[%emt 0:17:09]} 28. Bxg7 {[%emt 0:09:53]} Kxg7 {[%emt 0:04:47]} 29. Rxf7+ {[%emt 0:00:06]} Kg8 {[%emt 0:00:07]} 30. Qf5 {[%emt 0:00:11]} Rg6 {[%emt 0:00:39]} 31. h5 {[%emt 0:01:33]} Nxe3 {[%emt 0:01:41]} 32. dxe3 {[%emt 0:00:35]} Rc5 {[%emt 0:00:46]} 33. Qf2 {[%emt 0:06:31]} Re6 {[%emt 0:00:12]} 34. g6 {[%emt 0:01:40]} hxg6 {[%emt 0:06:45]} 35. h6 {[%emt 0:00:01]} Rg5 {[%emt 0:01:24]} 36. h7+ {[%emt 0:01:20]} Kh8 {[%emt 0:00:08]} 37. Rd7 {[%emt 0:00:30]} Bc5 {[%emt 0:03:15]} 38. Qb2+ {[%emt 0:00:48]} Ree5 {[%emt 0:00:26]} 39. Kf1 {[%emt 0:00:25]} c3 {[%emt 0:00:32]} 40. Qb7 {[%emt 0:00:00]} Qe8 {[%emt 0:00:00]} 41. Rg7 {[%emt 0:06:58]} Rgf5+ {[%emt 0:01:36]} 42. Kg1 {[%emt 0:00:57]} Bxe3+ {[%emt 0:00:37]} 43. Nxe3 {[%emt 0:01:29]} Rg5+ {[%emt 0:01:01]} 44. Kf2 {[%emt 0:01:54]} Rgf5+ {[%emt 0:14:10]} 45. Nxf5 {[%emt 0:00:45]} 1-0

[Event "35th European Club Cup 2019"]
[Site "Ulcinj"]
[Date "2019.11.13"]
[Round "4.29"]
[White "Rozum, Ivan"]
[Black "Barp, Alberto"]
[Result "1/2-1/2"]
[ECO "A08"]
[WhiteElo "2593"]
[BlackElo "2382"]
[Annotator "ChessBase"]
[PlyCount "65"]
[EventDate "2019.11.10"]
[EventType "team-tourn"]
[EventCountry "MNE"]
[SourceTitle "playchess.com"]
[Source "ChessBase"]
[SourceQuality "1"]
[WhiteTeam "Law & Order"]
[BlackTeam "WorldTradingLab Club"]
[TimeControl "40/5400+30:1800+30"]

1. Nf3 {[%emt 0:00:00]} d5 {[%emt 0:00:00]} 2. g3 {[%emt 0:00:00]} c5 {[%emt 0:01:18]} 3. Bg2 {[%emt 0:00:00]} Nc6 {[%emt 0:00:10]} 4. d4 {[%emt 0:00:00]} Nf6 {[%emt 0:00:20]} 5. O-O {[%emt 0:00:00]} e6 {[%emt 0:00:31]} 6. c4 {[%emt 0:00:23]} dxc4 {[%emt 0:00:07]} 7. dxc5 {[%emt 0:02:02]} Qxd1 {[%emt 0:00:35]} 8. Rxd1 {[%emt 0:00:04]} Bxc5 {[%emt 0:00:06]} 9. Nbd2 {[%emt 0:00:15]} c3 {[%emt 0:00:15]} 10. bxc3 {[%emt 0:00:03]} O-O {[%emt 0:00:09]} 11. Nb3 {[%emt 0:01:24]} Be7 {[%emt 0:00:09]} 12. Nfd4 {[%emt 0:01:32]} Bd7 {[%emt 0:02:49]} 13. Nb5 {[%emt 0:03:54]} Rfd8 {[%emt 0:15:08]} 14. c4 {[%emt 0:00:54]} Rac8 {[%emt 0:15:46]} 15. Bb2 {[%emt 0:00:44]} b6 {[%emt 0:02:02]} 16. Nd6 {[%emt 0:12:41]} Bxd6 {[%emt 0:02:20]} 17. Rxd6 {[%emt 0:01:04]} Be8 {[%emt 0:00:14]} 18. Rxd8 {[%emt 0:00:19]} Nxd8 {[%emt 0:01:55]} 19. Rc1 {[%emt 0:01:22]} Bc6 {[%emt 0:00:17]} 20. f3 {[%emt 0:00:39]} Nd7 {[%emt 0:00:57]} 21. c5 {[%emt 0:05:21]} Bd5 {[%emt 0:00:32]} 22. cxb6 {[%emt 0:00:26]} Rxc1+ {[%emt 0:00:07]} 23. Nxc1 {[%emt 0:03:39]} axb6 {[%emt 0:00:44]} 24. e4 {[%emt 0:03:58]} Bc4 {[%emt 0:01:21]} 25. Bf1 {[%emt 0:06:31]} Bxf1 {[%emt 0:01:18]} 26. Kxf1 {[%emt 0:00:02]} Nc6 {[%emt 0:02:43]} 27. Nd3 {[%emt 0:05:33]} Kf8 {[%emt 0:08:51]} 28. Ke2 {[%emt 0:04:21]} g6 {[%emt 0:04:40]} 29. Nf2 {[%emt 0:13:20]} Ke7 {[%emt 0:11:25]} 30. Ba3+ {[%emt 0:01:23]} Ke8 {[%emt 0:02:08]} 31. Bb2 {[%emt 0:05:02]} Ke7 {[%emt 0:02:30]} 32. Ba3+ {[%emt 0:09:18]} Ke8 {[%emt 0:00:17]} 33. Bb2 {[%emt 0:10:31]} 1/2-1/2

[Event "35th European Club Cup 2019"]
[Site "Ulcinj"]
[Date "2019.11.13"]
[Round "4.30"]
[White "Seresin, Francesco"]
[Black "Sychev, Klementy"]
[Result "1/2-1/2"]
[ECO "D85"]
[WhiteElo "2367"]
[BlackElo "2578"]
[Annotator "ChessBase"]
[PlyCount "38"]
[EventDate "2019.11.10"]
[EventType "team-tourn"]
[EventCountry "MNE"]
[SourceTitle "playchess.com"]
[Source "ChessBase"]
[SourceQuality "1"]
[WhiteTeam "WorldTradingLab Club"]
[BlackTeam "Law & Order"]
[TimeControl "40/5400+30:1800+30"]

1. d4 {[%emt 0:00:00]} Nf6 {[%emt 0:00:00]} 2. c4 {[%emt 0:00:50]} g6 {[%emt 0:00:00]} 3. Nc3 {[%emt 0:01:01]} d5 {[%emt 0:00:05]} 4. cxd5 {[%emt 0:01:06]} Nxd5 {[%emt 0:00:33]} 5. e4 {[%emt 0:00:48]} Nxc3 {[%emt 0:00:06]} 6. bxc3 {[%emt 0:00:06]} Bg7 {[%emt 0:00:03]} 7. Nf3 {[%emt 0:00:50]} c5 {[%emt 0:00:06]} 8. Be3 {[%emt 0:00:15]} Qa5 {[%emt 0:03:35]} 9. Qd2 {[%emt 0:00:58]} O-O {[%emt 0:00:43]} 10. Rb1 {[%emt 0:01:22]} b6 {[%emt 0:09:11]} 11. h4 {[%emt 0:23:12]} Rd8 {[%emt 0:24:43]} 12. Bc4 {[%emt 0:12:58]} Nc6 {[%emt 0:10:22]} 13. Rc1 {[%emt 0:13:42]} cxd4 {[%emt 0:16:37]} 14. cxd4 {[%emt 0:00:36]} e6 {[%emt 0:01:25]} 15. Bg5 {[%emt 0:19:10]} Qxd2+ {[%emt 0:07:37]} 16. Kxd2 {[%emt 0:01:41]} Rd6 {[%emt 0:00:41]} 17. Bf4 {[%emt 0:04:29]} Rd8 {[%emt 0:00:12]} 18. Bg5 {[%emt 0:00:07]} Rd6 {[%emt 0:00:58]} 19. Bf4 {[%emt 0:00:08]} Rd8 {[%emt 0:00:20]} 1/2-1/2

[Event "35th European Club Cup 2019"]
[Site "Ulcinj"]
[Date "2019.11.13"]
[Round "4.33"]
[White "Parkhov, Yair"]
[Black "Bosiocic, Marin"]
[Result "0-1"]
[ECO "E10"]
[WhiteElo "2368"]
[BlackElo "2598"]
[Annotator "ChessBase"]
[PlyCount "92"]
[EventDate "2019.11.10"]
[EventType "team-tourn"]
[EventCountry "MNE"]
[SourceTitle "playchess.com"]
[Source "ChessBase"]
[SourceQuality "1"]
[WhiteTeam "Rehovot"]
[BlackTeam "Valerenga"]
[TimeControl "40/5400+30:1800+30"]

1. d4 {[%emt 0:00:00]} Nf6 {[%emt 0:00:00]} 2. c4 {[%emt 0:00:00]} e6 {[%emt 0:00:00]} 3. Nf3 {[%emt 0:00:00]} d5 {[%emt 0:00:00]} 4. g3 {[%emt 0:00:00]} Bb4+ {[%emt 0:00:00]} 5. Bd2 {[%emt 0:00:00]} Be7 {[%emt 0:00:01]} 6. Bg2 {[%emt 0:00:07]} c6 {[%emt 0:00:07]} 7. O-O {[%emt 0:01:16]} Nbd7 {[%emt 0:00:08]} 8. Qb3 {[%emt 0:01:29]} Nb6 {[%emt 0:01:07]} 9. Ba5 {[%emt 0:09:52]} dxc4 {[%emt 0:00:50]} 10. Qc2 {[%emt 0:00:13]} Qd5 {[%emt 0:05:47]} 11. Bxb6 {[%emt 0:08:22]} axb6 {[%emt 0:00:05]} 12. Ne5 {[%emt 0:02:55]} Qd6 {[%emt 0:06:00]} 13. Qxc4 {[%emt 0:09:12]} O-O {[%emt 0:04:30]} 14. Nc3 {[%emt 0:10:42]} Nd7 {[%emt 0:03:16]} 15. f4 {[%emt 0:06:15]} Nxe5 {[%emt 0:02:14]} 16. fxe5 {[%emt 0:00:16]} Qb4 {[%emt 0:00:44]} 17. Qxb4 {[%emt 0:02:19]} Bxb4 {[%emt 0:00:09]} 18. Ne4 {[%emt 0:04:44]} Rd8 {[%emt 0:00:30]} 19. e3 {[%emt 0:04:16]} Bd7 {[%emt 0:00:14]} 20. a3 {[%emt 0:03:39]} Be7 {[%emt 0:01:07]} 21. Rac1 {[%emt 0:03:20]} Be8 {[%emt 0:00:33]} 22. Rc2 {[%emt 0:02:53]} Ra5 {[%emt 0:04:23]} 23. Nd2 {[%emt 0:02:06]} f6 {[%emt 0:07:40]} 24. Bh3 {[%emt 0:03:14]} f5 {[%emt 0:03:25]} 25. Nb3 {[%emt 0:04:07]} Ra4 {[%emt 0:02:55]} 26. Rc3 {[%emt 0:05:49]} h5 {[%emt 0:03:32]} 27. Bg2 {[%emt 0:00:59]} g5 {[%emt 0:00:26]} 28. h3 {[%emt 0:01:13]} Bg6 {[%emt 0:00:24]} 29. g4 {[%emt 0:02:39]} fxg4 {[%emt 0:02:24]} 30. hxg4 {[%emt 0:00:08]} hxg4 {[%emt 0:00:27]} 31. Nd2 {[%emt 0:02:03]} c5 {[%emt 0:03:19]} 32. Nb3 {[%emt 0:00:15]} c4 {[%emt 0:02:31]} 33. Nd2 {[%emt 0:00:46]} Bd3 {[%emt 0:00:37]} 34. Rfc1 {[%emt 0:03:42]} b5 {[%emt 0:01:46]} 35. b3 {[%emt 0:00:48]} Rxa3 {[%emt 0:01:33]} 36. bxc4 {[%emt 0:00:27]} b4 {[%emt 0:04:23]} 37. Rb3 {[%emt 0:00:17]} b6 {[%emt 0:00:21]} 38. c5 {[%emt 0:05:34]} bxc5 {[%emt 0:00:48]} 39. dxc5 {[%emt 0:00:07]} Be2 {[%emt 0:10:24]} 40. Rxa3 {[%emt 0:00:00]} bxa3 {[%emt 0:00:00]} 41. Nb3 {[%emt 0:06:59]} Rd1+ {[%emt 0:01:31]} 42. Kf2 {[%emt 0:07:20]} Rxc1 {[%emt 0:00:07]} 43. Nxc1 {[%emt 0:00:05]} Bc4 {[%emt 0:00:22]} 44. c6 {[%emt 0:00:07]} Bd8 {[%emt 0:00:13]} 45. Kg3 {[%emt 0:00:16]} Kg7 {[%emt 0:00:42]} 46. Kxg4 {[%emt 0:00:31]} Kh6 {[%emt 0:00:03]} 0-1

[Event "35th European Club Cup 2019"]
[Site "Ulcinj"]
[Date "2019.11.13"]
[Round "4.34"]
[White "Predojevic, Borki"]
[Black "Zlatin, Alexander"]
[Result "1-0"]
[ECO "D71"]
[WhiteElo "2621"]
[BlackElo "2296"]
[Annotator "ChessBase"]
[PlyCount "79"]
[EventDate "2019.11.10"]
[EventType "team-tourn"]
[EventCountry "MNE"]
[SourceTitle "playchess.com"]
[Source "ChessBase"]
[SourceQuality "1"]
[WhiteTeam "Valerenga"]
[BlackTeam "Rehovot"]
[TimeControl "40/5400+30:1800+30"]

1. d4 {[%emt 0:00:00]} Nf6 {[%emt 0:00:00]} 2. c4 {[%emt 0:00:00]} g6 {[%emt 0:00:00]} 3. g3 {[%emt 0:00:00]} Bg7 {[%emt 0:00:00]} 4. Bg2 {[%emt 0:00:00]} O-O {[%emt 0:01:11]} 5. Nf3 {[%emt 0:02:19]} d6 {[%emt 0:00:23]} 6. O-O {[%emt 0:00:06]} c5 {[%emt 0:00:31]} 7. dxc5 {[%emt 0:00:17]} dxc5 {[%emt 0:00:06]} 8. Ne5 {[%emt 0:00:03]} Qc7 {[%emt 0:14:59]} 9. Nd3 {[%emt 0:02:36]} Nbd7 {[%emt 0:08:20]} 10. Nc3 {[%emt 0:03:17]} a6 {[%emt 0:02:00]} 11. e4 {[%emt 0:12:54]} e5 {[%emt 0:08:14]} 12. Be3 {[%emt 0:17:12]} b6 {[%emt 0:09:50]} 13. Rc1 {[%emt 0:00:14]} Bb7 {[%emt 0:00:38]} 14. b4 {[%emt 0:00:42]} cxb4 {[%emt 0:06:57]} 15. Nxb4 {[%emt 0:00:41]} Rfd8 {[%emt 0:07:43]} 16. Ncd5 {[%emt 0:10:21]} Qd6 {[%emt 0:03:24]} 17. Nxf6+ {[%emt 0:07:02]} Nxf6 {[%emt 0:02:58]} 18. Nd5 {[%emt 0:02:23]} Nxd5 {[%emt 0:01:38]} 19. exd5 {[%emt 0:03:49]} Bc8 {[%emt 0:08:31]} 20. Rb1 {[%emt 0:04:09]} Rb8 {[%emt 0:00:05]} 21. Rxb6 {[%emt 0:00:38]} Rxb6 {[%emt 0:00:04]} 22. c5 {[%emt 0:00:03]} Qd7 {[%emt 0:02:41]} 23. cxb6 {[%emt 0:00:14]} Bb7 {[%emt 0:00:23]} 24. Qb3 {[%emt 0:04:08]} Bf8 {[%emt 0:00:57]} 25. Rc1 {[%emt 0:02:12]} Bd6 {[%emt 0:00:18]} 26. a4 {[%emt 0:04:59]} Rc8 {[%emt 0:03:05]} 27. a5 {[%emt 0:06:01]} f5 {[%emt 0:01:17]} 28. Rc6 {[%emt 0:04:06]} e4 {[%emt 0:03:20]} 29. Bf1 {[%emt 0:02:03]} h5 {[%emt 0:03:25]} 30. Bf4 {[%emt 0:01:38]} Bxf4 {[%emt 0:00:38]} 31. gxf4 {[%emt 0:00:05]} Kh7 {[%emt 0:00:21]} 32. Rxc8 {[%emt 0:00:19]} Qxc8 {[%emt 0:02:15]} 33. Qc4 {[%emt 0:00:31]} Qg8 {[%emt 0:05:38]} 34. Qc7+ {[%emt 0:02:01]} Kh8 {[%emt 0:00:04]} 35. Qe5+ {[%emt 0:02:42]} Kh7 {[%emt 0:00:07]} 36. Qe7+ {[%emt 0:02:15]} Kh8 {[%emt 0:00:01]} 37. d6 {[%emt 0:00:29]} e3 {[%emt 0:00:03]} 38. d7 {[%emt 0:00:20]} exf2+ {[%emt 0:00:08]} 39. Kxf2 {[%emt 0:00:06]} Qa2+ {[%emt 0:00:03]} 40. Be2 {[%emt 0:00:00]} 1-0

[Event "35th European Club Cup 2019"]
[Site "Ulcinj"]
[Date "2019.11.13"]
[Round "4.35"]
[White "Gorodetzky, Matan"]
[Black "Romanov, Evgeny"]
[Result "0-1"]
[ECO "B06"]
[WhiteElo "2273"]
[BlackElo "2597"]
[Annotator "ChessBase"]
[PlyCount "76"]
[EventDate "2019.11.10"]
[EventType "team-tourn"]
[EventCountry "MNE"]
[SourceTitle "playchess.com"]
[Source "ChessBase"]
[SourceQuality "1"]
[WhiteTeam "Rehovot"]
[BlackTeam "Valerenga"]
[TimeControl "40/5400+30:1800+30"]

1. e4 {[%emt 0:00:00]} g6 {[%emt 0:01:46]} 2. d4 {[%emt 0:00:24]} Bg7 {[%emt 0:00:07]} 3. Nf3 {[%emt 0:00:32]} d6 {[%emt 0:00:12]} 4. Nc3 {[%emt 0:00:55]} a6 {[%emt 0:00:32]} 5. a4 {[%emt 0:02:57]} Nf6 {[%emt 0:03:57]} 6. h3 {[%emt 0:02:15]} O-O {[%emt 0:00:42]} 7. Be3 {[%emt 0:01:23]} Nc6 {[%emt 0:02:48]} 8. Qd2 {[%emt 0:09:53]} e5 {[%emt 0:02:20]} 9. dxe5 {[%emt 0:18:00]} dxe5 {[%emt 0:00:26]} 10. Rd1 {[%emt 0:02:07]} Qe7 {[%emt 0:02:07]} 11. Bg5 {[%emt 0:08:28]} Qb4 {[%emt 0:04:15]} 12. Bd3 {[%emt 0:08:15]} Qxb2 {[%emt 0:10:35]} 13. Bxf6 {[%emt 0:02:02]} Bxf6 {[%emt 0:00:05]} 14. Nd5 {[%emt 0:00:05]} Bg7 {[%emt 0:18:00]} 15. O-O {[%emt 0:03:10]} Qa3 {[%emt 0:01:20]} 16. Nxc7 {[%emt 0:05:20]} Rb8 {[%emt 0:00:13]} 17. c3 {[%emt 0:00:52]} Rd8 {[%emt 0:01:58]} 18. Qc2 {[%emt 0:07:54]} Qc5 {[%emt 0:02:14]} 19. Qb2 {[%emt 0:00:57]} b5 {[%emt 0:08:13]} 20. Be2 {[%emt 0:11:52]} Rxd1 {[%emt 0:00:50]} 21. Rxd1 {[%emt 0:00:34]} bxa4 {[%emt 0:06:44]} 22. Qa2 {[%emt 0:00:01]} Rb7 {[%emt 0:11:27]} 23. Nxa6 {[%emt 0:07:37]} Qxc3 {[%emt 0:00:07]} 24. Qxa4 {[%emt 0:02:07]} Nd4 {[%emt 0:04:35]} 25. Nxd4 {[%emt 0:01:18]} exd4 {[%emt 0:00:03]} 26. e5 {[%emt 0:03:22]} h5 {[%emt 0:07:19]} 27. Rxd4 {[%emt 0:00:37]} Qe1+ {[%emt 0:01:24]} 28. Bf1 {[%emt 0:00:08]} Rb1 {[%emt 0:00:30]} 29. Qc4 {[%emt 0:00:24]} Be6 {[%emt 0:07:13]} 30. Qd3 {[%emt 0:00:01]} Bf5 {[%emt 0:00:09]} 31. Qc4 {[%emt 0:00:55]} Be6 {[%emt 0:00:01]} 32. Qd3 {[%emt 0:00:05]} Bf5 {[%emt 0:00:05]} 33. Qc4 {[%emt 0:00:07]} Bxe5 {[%emt 0:00:13]} 34. Rd8+ {[%emt 0:00:52]} Kg7 {[%emt 0:00:02]} 35. Nc5 {[%emt 0:00:28]} Rb2 {[%emt 0:01:24]} 36. Nd3 {[%emt 0:01:27]} Bxd3 {[%emt 0:00:11]} 37. Qxd3 {[%emt 0:00:01]} Qxf2+ {[%emt 0:00:15]} 38. Kh1 {[%emt 0:00:01]} Qf4 {[%emt 0:00:13]} 0-1